[Event "*** Titled Tuesday Blitz"]
[Site "Chess.com"]
[Date "2021.03.02"]
[Round "11"]
[White "pfalcon1949"]
[Black "JiiHart"]
[Result "1-0"]
[WhiteElo "2033"]
[BlackElo "2063"]
[TimeControl "180+1"]
[EndTime "12:09:47 PST"]
[Termination "pfalcon1949 won on time"]

1. d4 {[%clk 0:03:00.9]} 1... Nf6 {[%clk 0:02:59.1]} 2. c4 {[%clk 0:03:00]} 2...
e6 {[%clk 0:02:58.8]} 3. Nc3 {[%clk 0:02:59.3]} 3... c5 {[%clk 0:02:57.8]} 4. d5
{[%clk 0:02:58.8]} 4... exd5 {[%clk 0:02:57.8]} 5. cxd5 {[%clk 0:02:58.9]} 5...
d6 {[%clk 0:02:58.4]} 6. Nf3 {[%clk 0:02:55.8]} 6... g6 {[%clk 0:02:57.8]} 7.
Bf4 {[%clk 0:02:55.9]} 7... Bg7 {[%clk 0:02:53.6]} 8. e3 {[%clk 0:02:56.4]} 8...
a6 {[%clk 0:02:49.7]} 9. a4 {[%clk 0:02:54.4]} 9... O-O {[%clk 0:02:49]} 10. Be2
{[%clk 0:02:52.6]} 10... Bg4 {[%clk 0:02:46.6]} 11. O-O {[%clk 0:02:53]} 11...
Re8 {[%clk 0:02:43.9]} 12. h3 {[%clk 0:02:51.8]} 12... Bxf3 {[%clk 0:02:42.8]}
13. Bxf3 {[%clk 0:02:51.6]} 13... Qc7 {[%clk 0:02:26.4]} 14. a5 {[%clk
0:02:49.6]} 14... Nbd7 {[%clk 0:02:25.1]} 15. g3 {[%clk 0:02:43.6]} 15... Ne5
{[%clk 0:02:24.6]} 16. Bg2 {[%clk 0:02:39.2]} 16... Nh5 {[%clk 0:02:20.9]} 17.
Bxe5 {[%clk 0:02:39]} 17... Bxe5 {[%clk 0:02:20]} 18. Qc2 {[%clk 0:02:28.1]}
18... b5 {[%clk 0:02:09.7]} 19. axb6 {[%clk 0:02:27.1]} 19... Qxb6 {[%clk
0:02:09.5]} 20. Bf3 {[%clk 0:02:20.5]} 20... Ng7 {[%clk 0:01:53.4]} 21. Bg2
{[%clk 0:02:06.1]} 21... Reb8 {[%clk 0:01:52.6]} 22. Rab1 {[%clk 0:02:05.1]}
22... Qb3 {[%clk 0:01:50.7]} 23. Qd3 {[%clk 0:01:57.2]} 23... Rb4 {[%clk
0:01:34.2]} 24. f4 {[%clk 0:01:54.5]} 24... Bf6 {[%clk 0:01:25.9]} 25. Rfd1
{[%clk 0:01:53.1]} 25... Qc4 {[%clk 0:01:15.5]} 26. Ne4 {[%clk 0:01:46.3]} 26...
Be7 {[%clk 0:00:46.8]} 27. Qd2 {[%clk 0:01:30.9]} 27... Nf5 {[%clk 0:00:39.1]}
28. g4 {[%clk 0:01:26.8]} 28... Nh4 {[%clk 0:00:38.3]} 29. Rdc1 {[%clk
0:01:17.6]} 29... Qb5 {[%clk 0:00:30.4]} 30. Nc3 {[%clk 0:01:17]} 30... Qb7
{[%clk 0:00:19.8]} 31. e4 {[%clk 0:01:11.7]} 31... Nxg2 {[%clk 0:00:19.1]} 32.
Qxg2 {[%clk 0:01:10.7]} 32... Rb8 {[%clk 0:00:18.6]} 33. Rc2 {[%clk 0:01:06.3]}
33... Bf6 {[%clk 0:00:18.3]} 34. Nd1 {[%clk 0:00:54.2]} 34... a5 {[%clk
0:00:16.8]} 35. g5 {[%clk 0:00:49.5]} 35... Bd4+ {[%clk 0:00:16.8]} 36. Kh1
{[%clk 0:00:47.7]} 36... a4 {[%clk 0:00:17.2]} 37. f5 {[%clk 0:00:47.8]} 37...
a3 {[%clk 0:00:17]} 38. f6 {[%clk 0:00:43.5]} 38... axb2 {[%clk 0:00:14.4]} 39.
Nxb2 {[%clk 0:00:41.4]} 39... Rxb2 {[%clk 0:00:13.7]} 40. Rcxb2 {[%clk
0:00:40.7]} 40... Bxb2 {[%clk 0:00:13.9]} 41. Qf2 {[%clk 0:00:35.2]} 41... Qc8
{[%clk 0:00:07.7]} 42. Qh4 {[%clk 0:00:32.5]} 42... Kh8 {[%clk 0:00:05.2]} 43.
Qh6 {[%clk 0:00:28.7]} 43... Qg8 {[%clk 0:00:05]} 44. Qh4 {[%clk 0:00:29.4]}
44... c4 {[%clk 0:00:03.1]} 45. Qg3 {[%clk 0:00:28.2]} 45... c3 {[%clk
0:00:03.3]} 46. Qxd6 {[%clk 0:00:21.9]} 46... Qf8 {[%clk 0:00:03.4]} 47. Qc6
{[%clk 0:00:19.4]} 47... Qe8 {[%clk 0:00:03.2]} 48. Qc4 {[%clk 0:00:18.7]} 48...
Rc8 {[%clk 0:00:02.9]} 49. Qd3 {[%clk 0:00:19]} 49... Qe5 {[%clk 0:00:02.7]} 50.
Qc2 {[%clk 0:00:18.9]} 50... Re8 {[%clk 0:00:02.7]} 51. Re1 {[%clk 0:00:18.8]}
51... Qd4 {[%clk 0:00:02.1]} 52. Re2 {[%clk 0:00:19.2]} 1-0

[Event "*** Titled Tuesday Blitz"]
[Site "Chess.com"]
[Date "2021.03.02"]
[Round "11"]
[White "SlavenPastar"]
[Black "Niktlt"]
[Result "0-1"]
[WhiteElo "2562"]
[BlackElo "2422"]
[TimeControl "180+1"]
[EndTime "12:09:49 PST"]
[Termination "Niktlt won on time"]

1. b3 {[%clk 0:03:00.9]} 1... e5 {[%clk 0:02:59.3]} 2. Bb2 {[%clk 0:03:01]} 2...
Nc6 {[%clk 0:02:59.8]} 3. Nf3 {[%clk 0:03:00.6]} 3... Bd6 {[%clk 0:02:59]} 4. d4
{[%clk 0:02:57.2]} 4... e4 {[%clk 0:02:58.1]} 5. Ne5 {[%clk 0:02:51.6]} 5... Nf6
{[%clk 0:02:56.6]} 6. e3 {[%clk 0:02:47.9]} 6... O-O {[%clk 0:02:55.5]} 7. Nd2
{[%clk 0:02:46.2]} 7... Qe7 {[%clk 0:02:51.2]} 8. Ndc4 {[%clk 0:02:44.2]} 8...
a5 {[%clk 0:02:44.9]} 9. Be2 {[%clk 0:02:32.7]} 9... a4 {[%clk 0:02:43.8]} 10.
Nxd6 {[%clk 0:02:28.2]} 10... cxd6 {[%clk 0:02:42.5]} 11. Nc4 {[%clk 0:02:27.4]}
11... d5 {[%clk 0:02:42.8]} 12. Nd2 {[%clk 0:02:16.3]} 12... a3 {[%clk
0:02:41.2]} 13. Bc1 {[%clk 0:02:14.8]} 13... d6 {[%clk 0:02:40.8]} 14. c3 {[%clk
0:02:13.8]} 14... g6 {[%clk 0:02:38]} 15. Nb1 {[%clk 0:02:11.7]} 15... h5 {[%clk
0:02:37.1]} 16. Nxa3 {[%clk 0:02:04.9]} 16... Kg7 {[%clk 0:02:37.2]} 17. Nb5
{[%clk 0:02:04.9]} 17... Bg4 {[%clk 0:02:35.9]} 18. a4 {[%clk 0:02:01.7]} 18...
Bxe2 {[%clk 0:02:34.4]} 19. Qxe2 {[%clk 0:02:00.1]} 19... Ng4 {[%clk 0:02:35.3]}
20. Ba3 {[%clk 0:01:53.6]} 20... Rad8 {[%clk 0:02:30.7]} 21. h3 {[%clk
0:01:49.8]} 21... Nh6 {[%clk 0:02:30.4]} 22. O-O {[%clk 0:01:34.1]} 22... f5
{[%clk 0:02:28.8]} 23. c4 {[%clk 0:01:31.8]} 23... f4 {[%clk 0:02:23.4]} 24.
exf4 {[%clk 0:01:30.1]} 24... dxc4 {[%clk 0:02:19.7]} 25. d5 {[%clk 0:01:25.7]}
25... Nb8 {[%clk 0:02:12.8]} 26. bxc4 {[%clk 0:01:24.5]} 26... Rxf4 {[%clk
0:02:13.3]} 27. Qb2+ {[%clk 0:01:04.7]} 27... Kh7 {[%clk 0:02:08.8]} 28. Rab1
{[%clk 0:00:50.4]} 28... Rf7 {[%clk 0:02:07.3]} 29. Nd4 {[%clk 0:00:32.6]} 29...
Rc8 {[%clk 0:02:03.4]} 30. Qe2 {[%clk 0:00:28.4]} 30... Qe5 {[%clk 0:01:44.9]}
31. Bb2 {[%clk 0:00:26.3]} 31... Qf4 {[%clk 0:01:36.5]} 32. Ne6 {[%clk
0:00:25.2]} 32... Qh4 {[%clk 0:01:36.6]} 33. Qxe4 {[%clk 0:00:22.2]} 33... Qxe4
{[%clk 0:01:34.1]} 34. Ng5+ {[%clk 0:00:22.3]} 34... Kg8 {[%clk 0:01:35]} 35.
Nxe4 {[%clk 0:00:22.9]} 35... Nf5 {[%clk 0:01:33.9]} 36. Rfc1 {[%clk 0:00:21.1]}
36... Rfc7 {[%clk 0:01:32.9]} 37. g4 {[%clk 0:00:19.5]} 37... hxg4 {[%clk
0:01:29]} 38. hxg4 {[%clk 0:00:19.7]} 38... Nh4 {[%clk 0:01:27.5]} 39. Nxd6
{[%clk 0:00:18.9]} 39... Rf8 {[%clk 0:01:25.8]} 40. c5 {[%clk 0:00:17.2]} 40...
Nd7 {[%clk 0:01:25.3]} 41. Ne4 {[%clk 0:00:14.9]} 41... Rf4 {[%clk 0:01:23.7]}
42. d6 {[%clk 0:00:14.7]} 42... Rc6 {[%clk 0:01:23.7]} 43. Rc4 {[%clk
0:00:12.8]} 43... Nf3+ {[%clk 0:01:22.6]} 44. Kg2 {[%clk 0:00:11.8]} 44... g5
{[%clk 0:01:22.9]} 45. Nxg5 {[%clk 0:00:10.8]} 45... Rxc4 {[%clk 0:01:20]} 46.
Nxf3 {[%clk 0:00:10.6]} 46... Rxg4+ {[%clk 0:01:19.5]} 47. Kh3 {[%clk
0:00:10.3]} 47... Rb4 {[%clk 0:01:05.9]} 48. Rg1+ {[%clk 0:00:09.1]} 48... Kf8
{[%clk 0:01:04.2]} 49. Bg7+ {[%clk 0:00:08.5]} 49... Kf7 {[%clk 0:01:03.5]} 50.
Bd4 {[%clk 0:00:07.1]} 50... Ke6 {[%clk 0:00:56.8]} 51. Rg6+ {[%clk 0:00:05.7]}
51... Kd5 {[%clk 0:00:55.6]} 52. Rg5+ {[%clk 0:00:05.8]} 52... Ke4 {[%clk
0:00:51.8]} 53. Kg3 {[%clk 0:00:04]} 53... Rb3 {[%clk 0:00:48.4]} 54. Rg4+
{[%clk 0:00:03.9]} 54... Kd5 {[%clk 0:00:48.4]} 55. Rg5+ {[%clk 0:00:04.1]}
55... Kc4 {[%clk 0:00:48.8]} 56. Rg4 {[%clk 0:00:04.1]} 56... Nxc5 {[%clk
0:00:45]} 57. Kg2 {[%clk 0:00:02]} 57... Kd5 {[%clk 0:00:40.5]} 58. Rg5+ {[%clk
0:00:01.8]} 58... Kxd6 {[%clk 0:00:39.8]} 0-1

[Event "*** Titled Tuesday Blitz"]
[Site "Chess.com"]
[Date "2021.03.02"]
[Round "11"]
[White "Darius321"]
[Black "shaheus"]
[Result "0-1"]
[WhiteElo "2287"]
[BlackElo "2418"]
[TimeControl "180+1"]
[EndTime "12:09:49 PST"]
[Termination "shaheus won by resignation"]

1. e4 {[%clk 0:02:45.7]} 1... c5 {[%clk 0:02:58]} 2. Nf3 {[%clk 0:02:45.1]} 2...
Nc6 {[%clk 0:02:57.6]} 3. Bb5 {[%clk 0:02:44.9]} 3... g6 {[%clk 0:02:56.1]} 4.
O-O {[%clk 0:02:44]} 4... Bg7 {[%clk 0:02:55.8]} 5. Re1 {[%clk 0:02:43.5]} 5...
Nf6 {[%clk 0:02:54.5]} 6. c3 {[%clk 0:02:43.3]} 6... O-O {[%clk 0:02:54.1]} 7.
h3 {[%clk 0:02:43.4]} 7... a6 {[%clk 0:02:53.7]} 8. Bxc6 {[%clk 0:02:41.7]} 8...
dxc6 {[%clk 0:02:51.8]} 9. d4 {[%clk 0:02:42.1]} 9... cxd4 {[%clk 0:02:51.3]}
10. cxd4 {[%clk 0:02:43]} 10... Nd7 {[%clk 0:02:40.6]} 11. Nc3 {[%clk
0:02:40.6]} 11... e5 {[%clk 0:02:36.9]} 12. Bg5 {[%clk 0:02:35.9]} 12... Qb6
{[%clk 0:02:25]} 13. Na4 {[%clk 0:02:23.9]} 13... Qa5 {[%clk 0:02:08.9]} 14. a3
{[%clk 0:01:31.6]} 14... exd4 {[%clk 0:02:03.6]} 15. Be7 {[%clk 0:01:20.2]}
15... Re8 {[%clk 0:02:00.6]} 16. Bb4 {[%clk 0:01:10.5]} 16... Qb5 {[%clk
0:01:47.5]} 17. Rc1 {[%clk 0:00:54]} 17... a5 {[%clk 0:01:26.4]} 18. Bd6 {[%clk
0:00:49]} 18... Nf8 {[%clk 0:00:41.1]} 19. Nxd4 {[%clk 0:00:37]} 19... Qa6
{[%clk 0:00:38.7]} 20. Nc5 {[%clk 0:00:33.6]} 20... Qa7 {[%clk 0:00:38.3]} 21.
e5 {[%clk 0:00:29.4]} 21... Ne6 {[%clk 0:00:30.5]} 22. Ncxe6 {[%clk 0:00:26.6]}
22... Bxe6 {[%clk 0:00:30.5]} 23. Nxe6 {[%clk 0:00:24.4]} 23... Rxe6 {[%clk
0:00:30.7]} 24. Qf3 {[%clk 0:00:15.5]} 24... Rae8 {[%clk 0:00:28.5]} 25. Qf4
{[%clk 0:00:13.7]} 25... Qb6 {[%clk 0:00:22]} 26. b4 {[%clk 0:00:11.5]} 26...
axb4 {[%clk 0:00:20.7]} 27. axb4 {[%clk 0:00:12.4]} 27... Qb5 {[%clk 0:00:21]}
28. Re3 {[%clk 0:00:11.7]} 28... Qd5 {[%clk 0:00:19.1]} 29. Rce1 {[%clk
0:00:11]} 29... h5 {[%clk 0:00:16.5]} 30. Rf3 {[%clk 0:00:10.4]} 30... Rxd6
{[%clk 0:00:12.9]} 31. Qxf7+ {[%clk 0:00:07.6]} 31... Qxf7 {[%clk 0:00:12.3]}
32. Rxf7 {[%clk 0:00:07]} 32... Kxf7 {[%clk 0:00:12.6]} 33. exd6 {[%clk
0:00:07.5]} 33... Rxe1+ {[%clk 0:00:12.5]} 34. Kh2 {[%clk 0:00:07.8]} 34... Be5+
{[%clk 0:00:12.7]} 35. g3 {[%clk 0:00:07.6]} 35... Bxd6 {[%clk 0:00:12.8]} 36.
f4 {[%clk 0:00:08.5]} 36... Ke6 {[%clk 0:00:11.8]} 37. h4 {[%clk 0:00:08.9]}
37... Re2+ {[%clk 0:00:11.4]} 38. Kh3 {[%clk 0:00:08.9]} 38... Kf5 {[%clk
0:00:11]} 39. b5 {[%clk 0:00:08.9]} 39... Re3 {[%clk 0:00:09.3]} 40. b6 {[%clk
0:00:08.6]} 40... Bxf4 {[%clk 0:00:08.5]} 41. Kg2 {[%clk 0:00:07.8]} 41... Rxg3+
{[%clk 0:00:08.5]} 42. Kf2 {[%clk 0:00:07.9]} 42... Rb3 {[%clk 0:00:08]} 43. Ke2
{[%clk 0:00:08.8]} 43... Rxb6 {[%clk 0:00:07.9]} 44. Kf2 {[%clk 0:00:09.7]}
44... Rb3 {[%clk 0:00:07.8]} 45. Kg2 {[%clk 0:00:09.6]} 45... c5 {[%clk
0:00:08.2]} 46. Kf2 {[%clk 0:00:09.5]} 46... c4 {[%clk 0:00:08.9]} 47. Ke2
{[%clk 0:00:09.8]} 47... Rd3 {[%clk 0:00:09]} 48. Ke1 {[%clk 0:00:08.4]} 48...
Rd2 {[%clk 0:00:08.6]} 49. Kf1 {[%clk 0:00:07.9]} 49... c3 {[%clk 0:00:09.1]}
0-1

[Event "*** Titled Tuesday Blitz"]
[Site "Chess.com"]
[Date "2021.03.02"]
[Round "11"]
[White "DLR7"]
[Black "chessdjw"]
[Result "1/2-1/2"]
[WhiteElo "2637"]
[BlackElo "2735"]
[TimeControl "180+1"]
[EndTime "12:09:52 PST"]
[Termination "Game drawn by repetition"]

1. e4 {[%clk 0:02:59.8]} 1... e5 {[%clk 0:02:59.8]} 2. Nf3 {[%clk 0:02:59.7]}
2... Nc6 {[%clk 0:03:00.4]} 3. Bc4 {[%clk 0:02:58.1]} 3... Bc5 {[%clk
0:02:59.8]} 4. b4 {[%clk 0:02:57.7]} 4... Bxb4 {[%clk 0:02:59.6]} 5. c3 {[%clk
0:02:57.9]} 5... Be7 {[%clk 0:03:00]} 6. d4 {[%clk 0:02:40.5]} 6... Na5 {[%clk
0:02:58.1]} 7. Bd3 {[%clk 0:02:38]} 7... d6 {[%clk 0:02:57.8]} 8. dxe5 {[%clk
0:02:36]} 8... dxe5 {[%clk 0:02:58.7]} 9. Nxe5 {[%clk 0:02:33.4]} 9... Nf6
{[%clk 0:02:59.2]} 10. O-O {[%clk 0:02:31.4]} 10... O-O {[%clk 0:02:59.8]} 11.
Qc2 {[%clk 0:02:28.5]} 11... Nd7 {[%clk 0:02:57.4]} 12. Nxd7 {[%clk 0:02:20.7]}
12... Qxd7 {[%clk 0:02:58.3]} 13. Bf4 {[%clk 0:02:18.3]} 13... Rd8 {[%clk
0:02:47.7]} 14. Be2 {[%clk 0:02:17.6]} 14... Qc6 {[%clk 0:02:37.4]} 15. Nd2
{[%clk 0:02:14.3]} 15... Be6 {[%clk 0:02:37.5]} 16. Nf3 {[%clk 0:02:12.7]} 16...
Bc4 {[%clk 0:02:20.9]} 17. Ne5 {[%clk 0:02:08.3]} 17... Qc5 {[%clk 0:01:53.6]}
18. Nxc4 {[%clk 0:02:02.9]} 18... Nxc4 {[%clk 0:01:54.5]} 19. Qb3 {[%clk
0:01:38.5]} 19... Nd2 {[%clk 0:01:40.6]} 20. Bxd2 {[%clk 0:01:36.1]} 20... Rxd2
{[%clk 0:01:41.5]} 21. Bc4 {[%clk 0:01:33.4]} 21... Rad8 {[%clk 0:00:51.6]} 22.
Bxf7+ {[%clk 0:01:26.3]} 22... Kh8 {[%clk 0:00:51.6]} 23. g3 {[%clk 0:01:13.5]}
23... Qe5 {[%clk 0:00:26.9]} 24. Qe6 {[%clk 0:01:12.2]} 24... Qxe6 {[%clk
0:00:17.1]} 25. Bxe6 {[%clk 0:01:13.1]} 25... Bc5 {[%clk 0:00:17.7]} 26. Bc4
{[%clk 0:01:04.7]} 26... Rf8 {[%clk 0:00:16.6]} 27. Kh1 {[%clk 0:01:02.2]} 27...
Rfxf2 {[%clk 0:00:15.9]} 28. Rxf2 {[%clk 0:00:57.9]} 28... Bxf2 {[%clk
0:00:13.6]} 29. e5 {[%clk 0:00:51.2]} 29... g6 {[%clk 0:00:08.9]} 30. Rf1 {[%clk
0:00:49]} 30... Kg7 {[%clk 0:00:08]} 31. e6 {[%clk 0:00:47.4]} 31... Bc5 {[%clk
0:00:03.7]} 32. e7 {[%clk 0:00:43.7]} 32... Bxe7 {[%clk 0:00:03]} 33. Rf7+
{[%clk 0:00:43.6]} 33... Kh6 {[%clk 0:00:03.5]} 34. Rxe7 {[%clk 0:00:44.5]}
34... b5 {[%clk 0:00:01.5]} 35. Bxb5 {[%clk 0:00:41.2]} 35... Rxa2 {[%clk
0:00:01.8]} 36. Rxc7 {[%clk 0:00:41.8]} 36... a5 {[%clk 0:00:02.7]} 37. Ra7
{[%clk 0:00:40.7]} 37... Ra3 {[%clk 0:00:02.8]} 38. c4 {[%clk 0:00:40.8]} 38...
Kg5 {[%clk 0:00:03.2]} 39. Kg2 {[%clk 0:00:39.2]} 39... h5 {[%clk 0:00:03.2]}
40. h4+ {[%clk 0:00:36.6]} 40... Kf5 {[%clk 0:00:03.1]} 41. c5 {[%clk
0:00:29.1]} 41... Ke4 {[%clk 0:00:03]} 42. c6 {[%clk 0:00:28]} 42... Ra2+ {[%clk
0:00:03.5]} 43. Kh3 {[%clk 0:00:27.8]} 43... Kf3 {[%clk 0:00:02.8]} 44. c7
{[%clk 0:00:24.4]} 44... Rc2 {[%clk 0:00:02.4]} 45. Bd7 {[%clk 0:00:20.6]} 45...
Rc1 {[%clk 0:00:02.7]} 46. Kh2 {[%clk 0:00:09.3]} 46... Rc2+ {[%clk 0:00:02.9]}
47. Kg1 {[%clk 0:00:09.5]} 47... Rc1+ {[%clk 0:00:03.8]} 48. Kh2 {[%clk
0:00:09.4]} 48... Rc2+ {[%clk 0:00:04.4]} 49. Kh3 {[%clk 0:00:09.8]} 49... Rc1
{[%clk 0:00:05.3]} 50. Kh2 {[%clk 0:00:06.7]} 1/2-1/2

[Event "*** Titled Tuesday Blitz"]
[Site "Chess.com"]
[Date "2021.03.02"]
[Round "11"]
[White "juancruzarias"]
[Black "VFernandezB"]
[Result "0-1"]
[WhiteElo "2613"]
[BlackElo "2509"]
[TimeControl "180+1"]
[EndTime "12:09:52 PST"]
[Termination "VFernandezB won by resignation"]

1. d4 {[%clk 0:03:00.9]} 1... Nf6 {[%clk 0:03:00]} 2. Nf3 {[%clk 0:03:01.1]}
2... g6 {[%clk 0:03:00.2]} 3. Bg5 {[%clk 0:03:00.8]} 3... Bg7 {[%clk 0:02:58.3]}
4. Nbd2 {[%clk 0:03:00.5]} 4... d5 {[%clk 0:02:58.3]} 5. e3 {[%clk 0:02:59.4]}
5... O-O {[%clk 0:02:58.6]} 6. Be2 {[%clk 0:03:00]} 6... c5 {[%clk 0:02:59]} 7.
c3 {[%clk 0:02:59.4]} 7... Nc6 {[%clk 0:02:59.5]} 8. O-O {[%clk 0:02:59.3]} 8...
Ne4 {[%clk 0:02:59.6]} 9. Nxe4 {[%clk 0:02:59]} 9... dxe4 {[%clk 0:02:59.9]} 10.
Nd2 {[%clk 0:02:59.5]} 10... cxd4 {[%clk 0:03:00.3]} 11. cxd4 {[%clk 0:02:58.4]}
11... h6 {[%clk 0:02:49.5]} 12. Bh4 {[%clk 0:02:56.9]} 12... f5 {[%clk
0:02:44.7]} 13. Bc4+ {[%clk 0:02:51.5]} 13... Kh7 {[%clk 0:02:43.7]} 14. f4
{[%clk 0:02:51.6]} 14... Nxd4 {[%clk 0:02:12]} 15. exd4 {[%clk 0:02:23.3]} 15...
Qxd4+ {[%clk 0:02:12.9]} 16. Kh1 {[%clk 0:02:20.2]} 16... e3 {[%clk 0:02:13.1]}
17. Bb3 {[%clk 0:01:51.8]} 17... exd2 {[%clk 0:01:54.4]} 18. Rf2 {[%clk
0:01:42.2]} 18... Rd8 {[%clk 0:01:23.2]} 19. Re2 {[%clk 0:01:38.2]} 19... Qxf4
{[%clk 0:01:10.9]} 20. Bxe7 {[%clk 0:01:34.4]} 20... Rd3 {[%clk 0:00:54]} 21.
Bc2 {[%clk 0:01:19.3]} 21... Rd7 {[%clk 0:00:48]} 22. Bc5 {[%clk 0:01:19.2]}
22... Be5 {[%clk 0:00:44.7]} 23. g3 {[%clk 0:01:08.3]} 23... Qf3+ {[%clk
0:00:39.5]} 24. Rg2 {[%clk 0:00:56.4]} 24... Qd5 {[%clk 0:00:39.5]} 25. Bf2
{[%clk 0:00:42.2]} 25... b6 {[%clk 0:00:37.8]} 26. Bb3 {[%clk 0:00:42.5]} 26...
Qc6 {[%clk 0:00:33]} 27. Qf1 {[%clk 0:00:29.8]} 27... Bb7 {[%clk 0:00:32.8]} 28.
Rd1 {[%clk 0:00:30.2]} 28... Bxb2 {[%clk 0:00:26.2]} 29. Kg1 {[%clk 0:00:29.8]}
29... Re8 {[%clk 0:00:20.7]} 30. g4 {[%clk 0:00:20.5]} 30... Qxg2+ {[%clk
0:00:19.7]} 31. Qxg2 {[%clk 0:00:19.8]} 31... Bxg2 {[%clk 0:00:20.6]} 32. Kxg2
{[%clk 0:00:20.7]} 32... Re4 {[%clk 0:00:15.4]} 33. gxf5 {[%clk 0:00:20.6]}
33... gxf5 {[%clk 0:00:15.1]} 34. Kf3 {[%clk 0:00:21.2]} 34... Rd3+ {[%clk
0:00:14.6]} 35. Kg2 {[%clk 0:00:20.4]} 35... Bd4 {[%clk 0:00:11.8]} 36. Bc2
{[%clk 0:00:17.8]} 36... Rg4+ {[%clk 0:00:07]} 37. Kh1 {[%clk 0:00:16]} 37...
Rf3 {[%clk 0:00:06.3]} 38. Bxd4 {[%clk 0:00:16.3]} 38... Rxd4 {[%clk 0:00:07.2]}
39. Kg2 {[%clk 0:00:11.6]} 39... Rc3 {[%clk 0:00:07.2]} 40. Bb3 {[%clk
0:00:11.4]} 40... Rc1 {[%clk 0:00:07.5]} 41. Kf3 {[%clk 0:00:11.7]} 41... Rxd1
{[%clk 0:00:07.8]} 42. Bxd1 {[%clk 0:00:12.6]} 42... Kg6 {[%clk 0:00:08.2]} 43.
Ke3 {[%clk 0:00:13.1]} 43... Rh4 {[%clk 0:00:06.9]} 44. Kxd2 {[%clk 0:00:06.8]}
44... Rxh2+ {[%clk 0:00:06.9]} 45. Ke3 {[%clk 0:00:07.7]} 45... Rxa2 {[%clk
0:00:07.2]} 46. Bb3 {[%clk 0:00:07.5]} 46... Ra3 {[%clk 0:00:07.4]} 47. Kf3
{[%clk 0:00:07.1]} 47... Rxb3+ {[%clk 0:00:07.6]} 48. Kf4 {[%clk 0:00:08]} 48...
Rb4+ {[%clk 0:00:07.3]} 49. Kg3 {[%clk 0:00:07.8]} 49... Re4 {[%clk 0:00:08.2]}
50. Kf3 {[%clk 0:00:08.1]} 50... a5 {[%clk 0:00:09.1]} 51. Kg3 {[%clk 0:00:09]}
51... a4 {[%clk 0:00:09.8]} 0-1

[Event "*** Titled Tuesday Blitz"]
[Site "Chess.com"]
[Date "2021.03.02"]
[Round "11"]
[White "LuisFSiles"]
[Black "FMalexhdez"]
[Result "1-0"]
[WhiteElo "2314"]
[BlackElo "2172"]
[TimeControl "180+1"]
[EndTime "12:09:55 PST"]
[Termination "LuisFSiles won by resignation"]

1. e4 {[%clk 0:02:51.8]} 1... c5 {[%clk 0:02:59.6]} 2. Nf3 {[%clk 0:02:51.4]}
2... d6 {[%clk 0:03:00]} 3. d4 {[%clk 0:02:51]} 3... cxd4 {[%clk 0:03:00.6]} 4.
Nxd4 {[%clk 0:02:51.4]} 4... Nf6 {[%clk 0:03:01.2]} 5. Nc3 {[%clk 0:02:51.5]}
5... a6 {[%clk 0:03:01.8]} 6. Be3 {[%clk 0:02:51]} 6... e5 {[%clk 0:03:01.6]} 7.
Nf3 {[%clk 0:02:51.1]} 7... h6 {[%clk 0:02:53.7]} 8. Bc4 {[%clk 0:02:43.4]} 8...
Be7 {[%clk 0:02:41.1]} 9. a4 {[%clk 0:02:29.3]} 9... Be6 {[%clk 0:02:39.4]} 10.
Bxe6 {[%clk 0:02:13.3]} 10... fxe6 {[%clk 0:02:39]} 11. Nh4 {[%clk 0:02:13.3]}
11... O-O {[%clk 0:02:25]} 12. Ng6 {[%clk 0:02:10.6]} 12... Rf7 {[%clk
0:02:21.8]} 13. a5 {[%clk 0:01:58.6]} 13... Nbd7 {[%clk 0:02:17.5]} 14. Qd2
{[%clk 0:01:48.5]} 14... Nf8 {[%clk 0:02:09.5]} 15. Nxe7+ {[%clk 0:01:44]} 15...
Rxe7 {[%clk 0:02:07.9]} 16. Bb6 {[%clk 0:01:41.3]} 16... Qd7 {[%clk 0:01:26.8]}
17. Rd1 {[%clk 0:01:35.9]} 17... Ne8 {[%clk 0:01:08.6]} 18. O-O {[%clk
0:01:25.9]} 18... Qc6 {[%clk 0:01:08]} 19. Qe2 {[%clk 0:01:17.6]} 19... Nd7
{[%clk 0:01:05]} 20. Be3 {[%clk 0:00:58.4]} 20... Nc5 {[%clk 0:01:04]} 21. Bxc5
{[%clk 0:00:43.5]} 21... Qxc5 {[%clk 0:01:03.3]} 22. Rd3 {[%clk 0:00:43.8]}
22... Qxa5 {[%clk 0:00:52.1]} 23. Rfd1 {[%clk 0:00:38.4]} 23... Rd8 {[%clk
0:00:49.5]} 24. Qg4 {[%clk 0:00:37.3]} 24... Nf6 {[%clk 0:00:40]} 25. Qg6 {[%clk
0:00:36.4]} 25... Qc7 {[%clk 0:00:24.8]} 26. Rg3 {[%clk 0:00:26.8]} 26... Kf8
{[%clk 0:00:21]} 27. Rdd3 {[%clk 0:00:23]} 27... Rf7 {[%clk 0:00:20.6]} 28. Rdf3
{[%clk 0:00:21.7]} 28... Ke7 {[%clk 0:00:19.3]} 29. h4 {[%clk 0:00:17.7]} 29...
Rdf8 {[%clk 0:00:18.8]} 30. Rd3 {[%clk 0:00:15.3]} 30... Qc6 {[%clk 0:00:17.7]}
31. Rgf3 {[%clk 0:00:13.6]} 31... d5 {[%clk 0:00:16]} 32. exd5 {[%clk
0:00:13.3]} 32... Nxd5 {[%clk 0:00:16]} 33. Nxd5+ {[%clk 0:00:13.1]} 33... exd5
{[%clk 0:00:14.9]} 34. Rxf7+ {[%clk 0:00:13.5]} 34... Rxf7 {[%clk 0:00:14.5]}
35. Qg3 {[%clk 0:00:12.1]} 35... e4 {[%clk 0:00:13.5]} 36. Rc3 {[%clk
0:00:12.7]} 36... Qd6 {[%clk 0:00:11.7]} 37. Rc7+ {[%clk 0:00:13.6]} 37... Ke6
{[%clk 0:00:10.3]} 38. Qg4+ {[%clk 0:00:12.7]} 38... Kf6 {[%clk 0:00:05.8]} 39.
Rd7 {[%clk 0:00:12.5]} 39... Qe6 {[%clk 0:00:03.1]} 40. Rxf7+ {[%clk 0:00:06.8]}
40... Qxf7 {[%clk 0:00:02.3]} 41. h5 {[%clk 0:00:04.8]} 41... Qe6 {[%clk
0:00:02.1]} 42. Qg6+ {[%clk 0:00:04.6]} 42... Ke7 {[%clk 0:00:01.9]} 43. Qxg7+
{[%clk 0:00:05]} 43... Kd6 {[%clk 0:00:02.5]} 44. Qxb7 {[%clk 0:00:04.8]} 44...
d4 {[%clk 0:00:01.8]} 45. Qxa6+ {[%clk 0:00:04.2]} 45... Ke5 {[%clk 0:00:02.5]}
46. Qxe6+ {[%clk 0:00:03.5]} 46... Kxe6 {[%clk 0:00:03.2]} 47. Kf1 {[%clk
0:00:03.5]} 47... Kf5 {[%clk 0:00:03.9]} 48. Ke2 {[%clk 0:00:04]} 48... Kg4
{[%clk 0:00:04.7]} 49. f3+ {[%clk 0:00:04]} 49... Kxh5 {[%clk 0:00:05.6]} 50.
fxe4 {[%clk 0:00:03.9]} 50... Kg6 {[%clk 0:00:06.5]} 51. Kd3 {[%clk 0:00:04.2]}
51... Kf6 {[%clk 0:00:07.2]} 52. Kxd4 {[%clk 0:00:05.1]} 1-0